Cogmind - Beta 16 @@@ ROGUE MODE // 2025.12.24 @ 10:37:14 Player: FretfulMantis Result: Destroyed by S-43 Plague with Heavy Machine Gun Performance ------------- Evolutions (7) 3500 Regions Visited (21) 4200 Robots Destroyed (81) 405 Value Destroyed (2792) 2792 Prototype IDs (13) 260 Alien Tech Used (0) 0 Bonus (1471) 1471 TOTAL SCORE: 12628 Bonus ------- Follower Combat Kills 290 Entered Garrisons 400 Used RIF Installer 500 Met Data Miner 300 Friendly Fire -19 Cogmind --------- Core Integrity 0/1300 Matter 220/300 Energy 99/100 System Corruption 0% Temperature Cool (0) Movement Core (50) Location -3/Research Parts ------- > --- POWER (2) -------- (None) > --- PROPULSION (6) --- (None) > --- UTILITY (10) ----- Relay Coupler [Sentry] (2) > --- WEAPON (3) ------- (None) > --- INVENTORY (5) ---- Light Antimatter Reactor Light Antimatter Reactor Relay Coupler [NC] (24) Peak State ------------ > --- POWER ------------ Antimatter Reactor > --- PROPULSION ------- Heavy Treads Heavy Treads VTOL Module > --- UTILITY ---------- Improved Cooling System Advanced Signal Interpreter Advanced Targeting Computer Improved Propulsion Shielding EM Shield Relay Coupler [Programmer] Dynamic Insulation System > --- WEAPON ----------- Heavy Flak Cannon Micro-nuke Launcher Datajack > --- INVENTORY -------- Micro Fission Core Antimatter Reactor Kinecellerator Advanced Remote Datajack [Rating: 79] Favorites ----------- Power Light Nuclear Core Engine Ion Engine Power Core Light Nuclear Core Reactor Antimatter Reactor Propulsion Carbon-fiber Leg Treads Heavy Treads Leg Carbon-fiber Leg Wheel Wheel Hover Unit Gravmag System Flight Unit VTOL Module Utility Relay Coupler [Specialist] Device EM Shield Storage Large Storage Unit Processor Makeshift Salvage Targeting Computer Hackware Relay Coupler [Specialist] Protection Makeshift Light Armor Plating Weapon Gauss Rifle Energy Gun Heavy Laser Ballistic Gun Gauss Rifle Ballistic Cannon Heavy Flak Cannon Launcher Micro-nuke Launcher Special Weapon Improved Remote Datajack Impact Weapon Great Maul Slashing Weapon Phasing Sabre Special Melee Weapon Datajack Build | -11 -10 -9 -8 -8 -7 -7 -7 -7 -6 -6 -6 -6 -5 -5 -5 -5 -5 -5 -4 -4 -3 ------- Run | Yrd Mat Mat Mat Gar Fac Low Low Zio Pro Fac Low Dat Pro Fac Was Fac Ext Cet Fac Gar Res Slots Evolved 14 | . . 2 2 . 2 . . . . 2 . . . 2 . . . . 2 . 2 Power 1 | . . . . . . . . . . . . . . . . . . . 1 . . Propulsion 4 | . . 1 1 . . . . . . 1 . . . . . . . . 1 . . Utility 8 | . . 1 . . 2 . . . . 1 . . . 2 . . . . . . 2 Weapon 1 | . . . 1 . . . . . . . . . . . . . . . . . . Parts Attached 115 | 6 8 8 2 11 12 4 . 5 2 9 . . 4 1 7 5 18 2 2 2 7 Power 15 | 1 2 . . 3 1 . . 1 1 1 . . . . 1 1 1 1 . . 1 Engine 7 | 1 2 . . 2 . . . 1 . 1 . . . . . . . . . . . Core 6 | . . . . 1 1 . . . 1 . . . . . . 1 1 . . . 1 Reactor 2 | . . . . . . . . . . . . . . . 1 . . 1 . . . Propulsion 31 | 2 1 4 . 3 2 . . 1 1 2 . . 3 . 2 1 6 . . . 3 Treads 5 | . . . . . . . . 1 . . . . . . 2 1 1 . . . . Leg 7 | . . . . 3 2 . . . . 2 . . . . . . . . . . . Wheel 14 | 2 1 4 . . . . . . . . . . 2 . . . 5 . . . . Hover 1 | . . . . . . . . . 1 . . . . . . . . . . . . Flight 4 | . . . . . . . . . . . . . 1 . . . . . . . 3 Utility 35 | 1 2 3 1 1 4 3 . 2 . 3 . . 1 1 3 . 5 1 1 1 2 Device 15 | . . . . . 2 1 . . . 1 . . 1 . 2 . 5 1 . . 2 Storage 3 | 1 1 1 . . . . . . . . . . . . . . . . . . . Processor 6 | . . 1 . . . 1 . 1 . 1 . . . 1 . . . . 1 . . Hackware 3 | . . . . 1 . . . 1 . . . . . . . . . . . 1 . Protection 8 | . 1 1 1 . 2 1 . . . 1 . . . . 1 . . . . . . Artifact . | . . . . . . . . . . . . . . . . . . . . . . Weapon 34 | 2 3 1 1 4 5 1 . 1 . 3 . . . . 1 3 6 . 1 1 1 Energy Gun 5 | . . . . . . . . . . . . . . . . 1 3 . 1 . . Energy Cannon . | . . . . . . . . . . . . . . . . . . . . . . Ballistic Gun 16 | 2 3 1 1 2 4 1 . . . 1 . . . . . . . . . 1 . Ballistic Cannon 2 | . . . . . . . . . . 1 . . . . . 1 . . . . . Launcher 3 | . . . . 1 . . . . . 1 . . . . 1 . . . . . . Special Weapon 2 | . . . . . . . . . . . . . . . . 1 1 . . . . Impact Weapon 3 | . . . . 1 . . . . . . . . . . . . 1 . . . 1 Slashing Weapon 2 | . . . . . . . . 1 . . . . . . . . 1 . . . . Piercing Weapon . | . . . . . . . . . . . . . . . . . . . . . . Special Melee Weapon 1 | . . . . . 1 . . . . . . . . . . . . . . . . Unidentified Prototypes 3 | . . . . . 1 . . . . . . . . . . . . . 1 . 1 Corrupted Parts 3 | . . . . . . . . . . 1 . . . . . 1 . . . 1 . System Corruption 17 | . . . . . . . . . . 7 . . . . . 5 . . . 5 . Parts Lost 78 | . 4 6 . 6 3 1 6 4 1 2 1 . 8 . . 7 13 2 . 6 8 Power 11 | . 2 . . 2 . . 1 1 . 1 . . . . . 1 1 1 . . 1 Propulsion 25 | . 1 4 . 1 2 . 3 1 . . 1 . 3 . . 1 3 . . 2 3 Utility 22 | . . 1 . 1 1 1 1 . 1 1 . . 4 . . 2 6 . . . 3 Weapon 20 | . 1 1 . 2 . . 1 2 . . . . 1 . . 3 3 1 . 4 1 Highest Loss Streak 11 | . 2 3 . 5 3 1 6 4 1 2 1 . 2 . . 7 11 2 . 3 6 To Critical Strikes 2 | . . . . . . . . . . . . . . . . 1 1 . . . . Average Backups 8 | 2 9 10 13 13 13 14 15 14 5 4 4 5 5 5 4 3 4 3 2 1 3 Power 1 | . 1 2 2 1 2 1 1 . . . . 1 1 1 1 1 1 . . . 1 Propulsion . | 1 2 . . . . . . . . . . . . 1 . . . . . . . Utility 3 | . 3 3 5 6 6 6 8 7 2 2 2 2 1 1 1 1 1 . . . 1 Weapon 2 | . 1 3 5 3 4 6 5 4 2 1 1 1 1 1 . . . 1 1 . . Tool/Special . | . . . . . . . . . . . . . . . . . . . . . . Unused Backups 27 | . 4 . . 2 3 2 . 10 . . . . . . 2 1 . . . . 3 Power 4 | . . . . . 1 . . . . . . . . . . 1 . . . . 2 Propulsion 4 | . 3 . . . . . . . . . . . . . 1 . . . . . . Utility 10 | . . . . 2 1 . . 6 . . . . . . . . . . . . 1 Weapon 9 | . 1 . . . 1 2 . 4 . . . . . . 1 . . . . . . Tool/Special . | . . . . . . . . . . . . . . . . . . . . . . Average Slot Usage (%) 69 | . 99 96 75 79 86 85 73 51 35 71 80 80 47 31 47 72 73 19 15 23 13 Engine 3 | . 13 11 9 8 . . . 2 . 2 6 6 4 . . . . . . . . Core 2 | . . . . . 7 7 4 . . 3 . . . . . 1 4 . . . 1 Treads 1 | . . . . . . . . 2 . . . . . . 4 10 7 5 5 2 . Leg 7 | . . . . 11 25 23 13 . . 9 13 13 2 . . . . . . . . Wheel 6 | . 27 31 18 15 1 . . . . . . . . 5 4 . 9 1 5 1 . Device 5 | . . . . . 7 3 4 . . 4 6 6 5 5 6 16 23 3 3 . 2 Storage 4 | . 14 11 9 9 7 7 7 6 . . . . . . . . . . . . . Processor 7 | . . 10 3 . . 4 7 7 15 14 20 20 16 7 11 11 9 . 1 5 1 Hackware 5 | . . . . 2 7 7 7 8 15 13 13 13 10 5 5 3 . . . 2 4 Protection 4 | . 13 10 9 5 4 6 7 7 4 2 . . . . 2 3 . . . . . Ballistic Gun 12 | . 28 22 27 20 19 23 19 14 . 3 6 6 . . . . . . . 1 . Peak Build Rating 79 | 6 8 11 15 22 42 48 48 41 29 58 58 55 55 24 74 79 78 24 17 29 29 Average Rating 33 | 4 7 9 13 17 34 44 39 30 22 47 54 55 33 22 43 69 56 17 11 19 15 On Entrance 28 | . 6 7 10 15 22 42 48 27 24 29 58 55 55 19 24 74 55 14 11 17 6 Avg Prop Armor Cover (%) 9 | . . . . 4 2 . . . . 5 . . 16 16 12 1 12 27 29 22 . Naked Turns 56 | . . . . . . . . . . . . . . . . . 56 . . . . Heaviest Build 54 | 12 20 30 43 43 54 51 44 42 10 29 28 28 28 1 35 43 53 25 6 14 8 Greatest Support 140 | 20 20 42 32 35 50 48 48 22 9 47 47 47 47 4 140 140 93 27 16 16 15 Greatest Overweight (x) 13 | . . 1 1 1 1 1 10 13 1 1 . . 4 . 4 . 5 . . 4 1 Average Overweight (x) . | . . . . . . . 1 4 . . . . . . . . 1 . . 1 . Largest Inventory Capacity 15 | 8 10 15 15 15 15 15 15 15 5 5 5 5 5 5 5 5 5 5 5 5 5 Average Capacity 9 | 7 9 13 15 15 15 15 15 14 5 5 5 5 5 5 5 5 5 5 5 5 5 Most Carried 15 | 5 10 15 15 15 15 15 15 15 5 5 5 5 5 5 5 5 5 4 3 2 4 Average Carried 9 | 2 9 10 14 14 14 14 15 14 4 4 4 5 4 5 4 3 4 2 2 1 3 Final Capacity 15 | 8 10 15 15 15 15 15 15 5 5 5 5 5 5 5 5 5 5 5 5 5 5 Final Carried 15 | 5 9 14 15 14 14 15 15 5 5 4 5 5 5 5 4 4 5 2 2 2 3 Class Distribution -------------------- 47% | Mutant 23% | Scavenger-Mutant 9% | Tank 8% | Gunner 3% | Scavenger-Tank 3% | Scavenger-Gunner Dominant Class ---------------- Mutant | -10/Materials Scavenger-Mutant | -9/Materials Scavenger-Mutant | -8/Materials Scavenger-Gunner | -8/Garrison Scavenger-Mutant | -7/Factory Tank | -7/Lower Caves Gunner | -7/Lower Caves Mutant | -7/Zion Mutant | -6/Proximity Caves Derelict-Mutant | -6/Factory Mutant | -6/Lower Caves Mutant | -6/Data Miner Mutant | -5/Proximity Caves Mutant | -5/Factory Scavenger-Mutant | -5/Waste Scavenger-Mutant | -5/Factory Scavenger-Mutant | -5/Extension Mutant | -5/Cetus Mutant | -4/Factory Mutant | -4/Garrison Mutant | -3/Research Resources | -11 -10 -9 -8 -8 -7 -7 -7 -7 -6 -6 -6 -6 -5 -5 -5 -5 -5 -5 -4 -4 -3 ----------- Run | Yrd Mat Mat Mat Gar Fac Low Low Zio Pro Fac Low Dat Pro Fac Was Fac Ext Cet Fac Gar Res Matter Collected 2920 | 267 489 151 . 222 326 293 . 42 10 172 153 . 62 . 107 212 351 . . 15 48 Remotely . | . . . . . . . . . . . . . . . . . . . . . . Salvage Created 2762 | 20 497 355 . 353 398 282 . . . 224 148 . . . . 244 123 . . 90 28 Parts 140 | 1 38 27 . 17 18 16 . . . 4 3 . . . . 11 2 . . 2 1 Haulers Intercepted 2 | . 2 . . . . . . . . . . . . . . . . . . . . Recyclers Shooed 5 | 1 . 2 . . . . . . . . 1 . . . . 1 . . . . . Parts Field Recycled 7 | . . . . . 7 . . . . . . . . . . . . . . . . Retrieved Matter 90 | . . . . . 90 . . . . . . . . . . . . . . . . Parts Self-Destructed 21 | . . . . . . 16 . . . . 2 . 3 . . . . . . . . Prevented 7 | . . . . . . . 7 . . . . . . . . . . . . . . Parts Restored . | . . . . . . . . . . . . . . . . . . . . . . Kills | -11 -10 -9 -8 -8 -7 -7 -7 -7 -6 -6 -6 -6 -5 -5 -5 -5 -5 -5 -4 -4 -3 ------- Run | Yrd Mat Mat Mat Gar Fac Low Low Zio Pro Fac Low Dat Pro Fac Was Fac Ext Cet Fac Gar Res Combat Hostiles Destroyed 67 | . 13 11 . 15 6 8 . . . 5 3 . . . . 2 2 . . 1 1 Melee 1 | . . . . . . . . . . . . . . . . . . . . . 1 Guns 52 | . 13 11 . 9 6 8 . . . 2 3 . . . . . . . . . . Cannons 3 | . . . . . . . . . . . . . . . . 1 2 . . . . AOE 10 | . . . . 6 . . . . . 3 . . . . . 1 . . . . . Classes Destroyed 13 | 1 5 1 . 1 2 1 . . . 2 . . . . . . . . . . . Worker 3 | . . . . . . . . . . 1 . . . . . 2 . . . . . Tunneler 2 | 1 . . . . . . . . . . . . . . . 1 . . . . . Hauler 2 | . 2 . . . . . . . . . . . . . . . . . . . . Recycler 3 | . . 1 . . 1 . . . . . . . . . . 1 . . . . . Operator 1 | . 1 . . . . . . . . . . . . . . . . . . . . Watcher 3 | . 2 1 . . . . . . . . . . . . . . . . . . . Swarmer 29 | . 8 7 . 7 . 6 . . . . . . . . . . . . . . 1 Cutter 1 | . . . . 1 . . . . . . . . . . . . . . . . . Grunt 25 | . 5 4 . 7 3 . . . . 3 3 . . . . . . . . . . Brawler 1 | . . . . . . . . . . 1 . . . . . . . . . . . Sentry 8 | . . . . . 2 1 . . . 1 . . . . . 1 2 . . 1 . Hunter 2 | . . . . . . 1 . . . . . . . . . 1 . . . . . Programmer 1 | . . . . . 1 . . . . . . . . . . . . . . . . Best Kill Streak 8 | 1 3 4 . 8 2 4 . . . 6 2 . . . . 2 1 . . 1 1 Combat Bots Only 8 | . 3 4 . 8 2 4 . . . 5 2 . . . . 1 1 . . 1 1 Max Kills in Single Turn 3 | 1 1 1 . 3 1 2 . . . 2 1 . . . . 2 1 . . 1 1 Gunslinging 1 | . . . . 1 . . . . . . . . . . . . . . . . . Exploded 3 | . . . . 3 . . . . . 1 . . . . . 1 . . . . . Melee 1 | . . . . . . . . . . . . . . . . . . . . . 1 Uniques/NPCs Destroyed . | . . . . . . . . . . . . . . . . . . . . . . Combat | -11 -10 -9 -8 -8 -7 -7 -7 -7 -6 -6 -6 -6 -5 -5 -5 -5 -5 -5 -4 -4 -3 -------- Run | Yrd Mat Mat Mat Gar Fac Low Low Zio Pro Fac Low Dat Pro Fac Was Fac Ext Cet Fac Gar Res Hostile Shots Fired 1151 | . 89 53 . 93 89 66 60 60 2 38 28 . 98 . . 77 110 28 . 127 133 Missed 386 | . 20 13 . 29 24 21 21 23 1 12 10 . 45 . . 19 35 7 . 48 58 Hits 765 | . 69 40 . 64 65 45 39 37 1 26 18 . 53 . . 58 75 21 . 79 75 Melee 1 | . . . . 1 . . . . . . . . . . . . . . . . . Projectile 764 | . 69 40 . 63 65 45 39 37 1 26 18 . 53 . . 58 75 21 . 79 75 Critical Strikes 15 | . 1 . . 3 1 . . . . . . . 2 . . 2 2 3 . . 1 Actively Blocked 1 | . 1 . . . . . . . . . . . . . . . . . . . . Damage Taken 12685 | . 637 366 . 872 630 568 736 640 16 451 339 . 974 . . 1083 1493 567 3 1529 1781 Core 4373 | . 96 53 . 123 109 12 100 277 . 4 78 . 612 . . 84 582 137 3 801 1302 Absorbed by Shields 93 | . . . . . . . . . . . . . . . . . . . . 93 . Redirected to Shielding 124 | . 37 15 . . . . . . . . . . . . . 72 . . . . . Ignored by Resistances 98 | . . . . . . . . . . 3 . . . . . 95 . . . . . Core Remaining (%) 52 | 100 61 86 . 77 . . . . 28 . . . 18 . . . . 19 . 30 . Volleys Fired 274 | 2 63 49 . 41 25 19 . . . 11 11 . . . . 21 26 1 . 5 . Largest 3 | 2 2 2 . 3 3 3 . . . 2 2 . . . . 2 3 1 . 1 . Hottest 178 | 40 40 40 . 70 75 81 . . . 64 65 . . . . 109 178 81 . 33 . Shots Fired 554 | 4 126 98 . 91 74 57 . . . 17 21 . . . . 26 34 1 . 5 . Gun 479 | 4 126 98 . 87 74 57 . . . 6 11 . . . . 4 9 1 . 2 . Cannon 36 | . . . . . . . . . . . 10 . . . . 13 13 . . . . Launcher 17 | . . . . 4 . . . . . 11 . . . . . 2 . . . . . Special 22 | . . . . . . . . . . . . . . . . 7 12 . . 3 . Kinetic 501 | 4 126 98 . 87 74 57 . . . 6 21 . . . . 13 13 . . 2 . Thermal 7 | . . . . . . . . . . . . . . . . . 6 1 . . . Explosive 17 | . . . . 4 . . . . . 11 . . . . . 2 . . . . . Electromagnetic 7 | . . . . . . . . . . . . . . . . 4 3 . . . . Robot Hit Streak 23 | 1 7 11 . 11 6 7 . . . 11 11 . . . . 11 23 1 . 3 . Robot Miss Streak 8 | 1 5 3 . 4 4 4 . . . 5 4 . . . . 8 3 . . 1 . Penetration Max . | . . . . . . . . . . . . . . . . . . . . . . Secondary Targets 5 | . 1 . . 1 1 2 . . . . . . . . . . . . . . . Max Gunslinging Chain 1 | . 1 . . 1 1 1 . . . . . . . . . . . . . . . Shots Hit Robots 373 | 2 70 65 . 56 45 34 . . . 16 18 . . . . 22 32 1 . 9 3 Core Hits 218 | 1 29 27 . 34 16 14 . . . 21 23 . . . . 22 30 . . . 1 Critical Kills 2 | . 1 . . . . . . . . . . . . . . . . . . . 1 Critical Parts Destroyed 4 | . 1 . . . . . . . . . . . . . . . . . . 3 . Critical Strikes 9 | . 2 . . . . . . . . 1 1 . . . . . 1 . . 3 1 Burn 1 | . . . . . . . . . . . . . . . . . 1 . . . . Destroy 2 | . 2 . . . . . . . . . . . . . . . . . . . . Blast 1 | . . . . . . . . . . . 1 . . . . . . . . . . Smash 4 | . . . . . . . . . . . . . . . . . . . . 3 1 Sever 1 | . . . . . . . . . . 1 . . . . . . . . . . . Melee Attacks 32 | . . . . 1 1 . . . . 4 . . . . . 2 2 . . 16 6 Impact 23 | . . . . 1 . . . . . . . . . . . . . . . 16 6 Slashing 6 | . . . . . . . . . . 4 . . . . . . 2 . . . . Piercing . | . . . . . . . . . . . . . . . . . . . . . . Sneak Attacks 3 | . . . . . 1 . . . . . . . . . . 2 . . . . . Combat Hostiles . | . . . . . . . . . . . . . . . . . . . . . . Follow-up Attacks . | . . . . . . . . . . . . . . . . . . . . . . Damage Inflicted 6603 | 25 853 537 . 964 766 627 . . . 801 384 . 11 . . 527 676 25 3 293 111 Guns 3902 | 25 853 530 . 465 766 627 . . . 143 209 . . . . 56 144 25 . 59 . Cannons 974 | . . . . . . . . . . . 175 . . . . 305 494 . . . . Explosions 1180 | . . . . 499 . . . . . 536 . . . . . 145 . . . . . Melee 462 | . . . . . . . . . . 122 . . . . . . . . . 229 111 Ramming 85 | . . 7 . . . . . . . . . . 11 . . 21 38 . 3 5 . Kinetic 4651 | 25 853 530 . 465 766 627 . . . 143 384 . . . . 305 494 . . 59 . Thermal 121 | . . . . . . . . . . . . . . . . . 96 25 . . . Explosive 1137 | . . . . 499 . . . . . 493 . . . . . 145 . . . . . Electromagnetic 147 | . . . . . . . . . . 43 . . . . . 56 48 . . . . Impact 340 | . . . . . . . . . . . . . . . . . . . . 229 111 Slashing 122 | . . . . . . . . . . 122 . . . . . . . . . . . Piercing . | . . . . . . . . . . . . . . . . . . . . . . Highest Corruption 9 | . . . . . . . . . . 7 7 7 7 . . 7 9 9 . 9 . Average Corruption 6 | . . . . . . . . . . 7 7 7 7 . . 4 7 9 . 5 . Corruption Purged . | . . . . . . . . . . . . . . . . . . . . . . Corruption Blocked . | . . . . . . . . . . . . . . . . . . . . . . Effects 50 | . . . . . . . . . . 2 5 3 13 . . 3 19 2 . 3 . Message Errors 14 | . . . . . . . . . . . 1 1 6 . . 1 4 1 . . . Matter Fused 6 | . . . . . . . . . . . 2 . . . . . 4 . . . . Heat Flow Errors 6 | . . . . . . . . . . . . . 2 . . 1 3 . . . . Energy Discharges 8 | . . . . . . . . . . 1 . 1 . . . . 3 . . 3 . Parts Rejected 3 | . . . . . . . . . . . . . 2 . . . 1 . . . . Parts Fused 1 | . . . . . . . . . . . . . 1 . . . . . . . . Data Loss (minor) 9 | . . . . . . . . . . 1 1 1 2 . . 1 2 1 . . . Data Loss (major) 1 | . . . . . . . . . . . . . . . . . 1 . . . . Alerts 1 | . . . . . . . . . . . 1 . . . . . . . . . . Weapon Failures 1 | . . . . . . . . . . . . . . . . . 1 . . . . Overload Shots . | . . . . . . . . . . . . . . . . . . . . . . Overflow Damage 135 | . . . . 47 . . . . . . . . . . . . . . . 88 . Projectiles . | . . . . . . . . . . . . . . . . . . . . . . Explosions 47 | . . . . 47 . . . . . . . . . . . . . . . . . Melee 88 | . . . . . . . . . . . . . . . . . . . . 88 . Knockbacks 7 | . . . . . . . . . . . 4 . . . . 2 1 . . . . Impact . | . . . . . . . . . . . . . . . . . . . . . . Kinetic 6 | . . . . . . . . . . . 3 . . . . 2 1 . . . . Secondary 1 | . . . . . . . . . . . 1 . . . . . . . . . . Self-Inflicted Damage 155 | . . 3 . 25 . . . . . 71 . . 5 . . 25 18 . 3 5 . Shots 4 | . . . . 1 . . . . . 2 . . . . . 1 . . . . . Rammed 5 | . . 1 . . . . . . . . . . 1 . . . 3 . . . . Targets Rammed 7 | . . 1 . . . . . . . . . . 1 . . 2 3 . . . . Kicked . | . . . . . . . . . . . . . . . . . . . . . . Crushed 2 | . . . . . . . . . . . . . . . . 2 . . . . . Highest Temperature 312 | . 9 15 . 57 312 273 . . . 4 42 . 212 . . 118 178 52 . . . Average Temperature 67 | . 6 5 . 22 110 98 . . . 2 19 . 100 . . 69 43 26 . . . Received Heat Transfer 2094 | . 123 96 . 432 219 30 60 . . 165 138 . 285 . . 81 291 81 . 93 . Siege Activations . | . . . . . . . . . . . . . . . . . . . . . . Martial Activations . | . . . . . . . . . . . . . . . . . . . . . . Shielding Activations . | . . . . . . . . . . . . . . . . . . . . . . Robots Disrupted . | . . . . . . . . . . . . . . . . . . . . . . Combat Hostiles . | . . . . . . . . . . . . . . . . . . . . . . Robots Corrupted 1 | . . . . . . . . . . . . . . . . . . . . 1 . Combat Hostiles 1 | . . . . . . . . . . . . . . . . . . . . 1 . Parts Fried 1 | . . . . . . . . . . . . . . . . . . . . 1 . Impact Corruptions 3 | . . . . . . . . . . . . . . . . . . . . 3 . Robots Melted . | . . . . . . . . . . . . . . . . . . . . . . Combat Hostiles . | . . . . . . . . . . . . . . . . . . . . . . Parts Melted . | . . . . . . . . . . . . . . . . . . . . . . Heat Transferred 296 | . . . . . . . . . . . . . . . . . 259 37 . . . Parts Sabotaged . | . . . . . . . . . . . . . . . . . . . . . . Parts Stolen . | . . . . . . . . . . . . . . . . . . . . . . Parts Stripped . | . . . . . . . . . . . . . . . . . . . . . . Power Chain Reactions . | . . . . . . . . . . . . . . . . . . . . . . Alert | -11 -10 -9 -8 -8 -7 -7 -7 -7 -6 -6 -6 -6 -5 -5 -5 -5 -5 -5 -4 -4 -3 ------- Run | Yrd Mat Mat Mat Gar Fac Low Low Zio Pro Fac Low Dat Pro Fac Was Fac Ext Cet Fac Gar Res Maximum Alert Level 2 | . . . . 1 . . . . . . . . . 2 . . . . . . . Low Security (%) 96 | 100 100 100 100 67 100 . . . . 100 . . . . 100 100 100 100 100 100 100 Level 1 3 | . . . . 32 . . . . . . . . . . . . . . . . . Level 2 . | . . . . . . . . . . . . . . 100 . . . . . . . Level 3 . | . . . . . . . . . . . . . . . . . . . . . . Level 4 . | . . . . . . . . . . . . . . . . . . . . . . Level 5 . | . . . . . . . . . . . . . . . . . . . . . . High Security . | . . . . . . . . . . . . . . . . . . . . . . Max Security . | . . . . . . . . . . . . . . . . . . . . . . Peak Influence 566 | 5 136 127 39 362 193 . . . . 150 . . . 566 198 83 104 57 3 125 90 Initial 566 | . . 50 39 18 189 . . . . . . . . 566 198 82 29 57 3 . 69 Average 76 | . 49 78 36 180 130 . . . . 65 . . . 566 162 44 15 33 1 47 39 Influence Increases 3789 | 5 422 319 . 404 231 190 15 . 30 205 85 . 475 450 . 280 309 . . 199 170 Destroy 0b10 Robot/C 1500 | . 260 220 . 300 120 160 . . . 100 60 . 40 . . 100 100 . . 20 20 Destroy 0b10 Robot/NC 75 | 5 25 10 . . 5 . . . . 5 . . . . . 20 5 . . . . Destroy Leader 282 | . 58 42 . 30 40 30 . . . 20 10 . . . . 40 12 . . . . Allied During Kill 33 | . . . . . . . . . . . . . . . . 8 25 . . . . Successful Hack 80 | . 19 2 . 14 19 . . . . 14 . . . . . 12 . . . . . Disable Machine 45 | . . . . . . . . . . 30 . . . . . . . . . 15 . Anti-Garrison Action 150 | . . . . 50 . . . . . . . . . . . . . . . 100 . Destroy Structure 139 | . . . . 10 2 . . . . 36 . . . . . 70 2 . . 19 . Advance Influence 450 | . . . . . . . . . . . . . . 450 . . . . . . . Partial Spotted 30 | . 15 15 . . . . . . . . . . . . . . . . . . . Lose Combat Pursuer 1005 | . 45 30 . . 45 . 15 . 30 . 15 . 435 . . 30 165 . . 45 150 Influence Decreases 3704 | 5 301 345 66 71 481 260 57 . 30 111 106 73 290 69 448 337 266 97 7 74 210 Entered New Map 1083 | . . 71 56 11 173 42 9 . . . 36 73 . 69 368 36 32 47 4 . 56 Time Decay 1938 | 5 261 214 10 . 278 208 48 . 30 91 60 . 200 . 80 221 125 30 3 . 74 Lost Part 563 | . 40 60 . 60 30 10 . . . 20 10 . 70 . . 60 49 20 . 54 80 Lost Ally 120 | . . . . . . . . . . . . . 20 . . 20 60 . . 20 . Squads Dispatched 7 | . 1 2 . . 1 . . . . . . . . . . 1 2 . . . . Investigation . | . . . . . . . . . . . . . . . . . . . . . . Extermination 2 | . . . . . 1 . . . . . . . . . . 1 . . . . . Reinforcement 5 | . 1 2 . . . . . . . . . . . . . . 2 . . . . Assault . | . . . . . . . . . . . . . . . . . . . . . . Garrison . | . . . . . . . . . . . . . . . . . . . . . . Intercept . | . . . . . . . . . . . . . . . . . . . . . . Searches Triggered . | . . . . . . . . . . . . . . . . . . . . . . Construction Impeded 1 | . . . . . . . . . . . . . . . . . 1 . . . . Haulers Reinforced . | . . . . . . . . . . . . . . . . . . . . . . Active Scanning Responses . | . . . . . . . . . . . . . . . . . . . . . . Cargo Convoy Interrupts . | . . . . . . . . . . . . . . . . . . . . . . Stealth | -11 -10 -9 -8 -8 -7 -7 -7 -7 -6 -6 -6 -6 -5 -5 -5 -5 -5 -5 -4 -4 -3 --------- Run | Yrd Mat Mat Mat Gar Fac Low Low Zio Pro Fac Low Dat Pro Fac Was Fac Ext Cet Fac Gar Res Distress Signals 9 | . 2 1 . . . . . . . . . . 1 1 . 2 1 1 . . . Communications Jammed . | . . . . . . . . . . . . . . . . . . . . . . Distress Signals . | . . . . . . . . . . . . . . . . . . . . . . Times Spotted 208 | . 20 18 . 22 9 9 1 3 2 5 4 . 36 2 . 11 25 5 . 14 22 Peak Tracking Total 11 | . 6 4 . 7 3 4 1 3 2 3 3 . 9 3 . 4 11 5 . 11 11 Tactical Retreats 30 | . 2 1 . . 2 . 1 1 1 . 1 . 9 . . 1 3 . . 3 5 Traps | -11 -10 -9 -8 -8 -7 -7 -7 -7 -6 -6 -6 -6 -5 -5 -5 -5 -5 -5 -4 -4 -3 ------- Run | Yrd Mat Mat Mat Gar Fac Low Low Zio Pro Fac Low Dat Pro Fac Was Fac Ext Cet Fac Gar Res Traps Triggered 11 | . . . . 1 . . . . . . . . . 1 . 3 4 . . 2 . Indirectly . | . . . . . . . . . . . . . . . . . . . . . . Trap Hack Attempts . | . . . . . . . . . . . . . . . . . . . . . . Triggered . | . . . . . . . . . . . . . . . . . . . . . . Disarmed . | . . . . . . . . . . . . . . . . . . . . . . Reprogrammed . | . . . . . . . . . . . . . . . . . . . . . . Reused . | . . . . . . . . . . . . . . . . . . . . . . Traps Extracted . | . . . . . . . . . . . . . . . . . . . . . . Installed . | . . . . . . . . . . . . . . . . . . . . . . Triggered . | . . . . . . . . . . . . . . . . . . . . . . Machines | -11 -10 -9 -8 -8 -7 -7 -7 -7 -6 -6 -6 -6 -5 -5 -5 -5 -5 -5 -4 -4 -3 ---------- Run | Yrd Mat Mat Mat Gar Fac Low Low Zio Pro Fac Low Dat Pro Fac Was Fac Ext Cet Fac Gar Res Machines Disabled 6 | . . . . 1 . . . . . 2 . . . . . . 1 . . 2 . Max in Single Turn 1 | . . . . 1 . . . . . 1 . . . . . . . . . 1 . Garrison Relay 2 | . . . . 1 . . . . . . . . . . . . . . . 1 . Machines Repaired . | . . . . . . . . . . . . . . . . . . . . . . Machines Dismantled . | . . . . . . . . . . . . . . . . . . . . . . Machines Sabotaged . | . . . . . . . . . . . . . . . . . . . . . . Overloaded Fab Kills . | . . . . . . . . . . . . . . . . . . . . . . Hacking | -11 -10 -9 -8 -8 -7 -7 -7 -7 -6 -6 -6 -6 -5 -5 -5 -5 -5 -5 -4 -4 -3 --------- Run | Yrd Mat Mat Mat Gar Fac Low Low Zio Pro Fac Low Dat Pro Fac Was Fac Ext Cet Fac Gar Res Machines Accessed 26 | . 7 2 1 1 3 1 . . . 2 . 4 1 . . 2 . . 1 1 . Terminals 15 | . 7 1 . 1 2 . . . . 2 . . 1 . . . . . . 1 . Fabricators 1 | . . . . . . . . . . . . . . . . 1 . . . . . Repair Stations 1 | . . . . . . . . . . . . . . . . 1 . . . . . Recycling Units . | . . . . . . . . . . . . . . . . . . . . . . Scanalyzers 2 | . . 1 . . 1 . . . . . . . . . . . . . . . . Garrison Access 2 | . . . 1 . . . . . . . . . . . . . . . 1 . . Total Hacks 77 | . 15 4 1 2 10 1 . . . 2 . 34 1 . . 3 . . 2 2 . Successful 57 | . 8 1 1 1 5 1 . . . 1 . 34 1 . . 2 . . 2 . . Failed 18 | . 7 2 . 1 4 . . . . 1 . . . . . 1 . . . 2 . Catastrophic 6 | . 3 . . 1 . . . . . 1 . . . . . . . . . 1 . Database Lockouts 2 | . . 1 . . 1 . . . . . . . . . . . . . . . . Manual 27 | . 16 2 . . 7 . . . . 2 . . . . . . . . . . . Terminals 31 | . 15 2 . 2 7 . . . . 2 . . 1 . . . . . . 2 . Fabricators 1 | . . . . . . . . . . . . . . . . 1 . . . . . Repair Stations 2 | . . . . . . . . . . . . . . . . 2 . . . . . Recycling Units . | . . . . . . . . . . . . . . . . . . . . . . Scanalyzers 5 | . . 2 . . 3 . . . . . . . . . . . . . . . . Garrison Access 3 | . . . 1 . . . . . . . . . . . . . . . 2 . . Terminal Hacks 41 | . 3 . . 1 1 1 . . . . . 34 1 . . . . . . . . Record 12 | . . . . . . . . . . . . 11 1 . . . . . . . . Part Schematic 12 | . . . . . . . . . . . . 12 . . . . . . . . . Robot Schematic 8 | . . . . . . . . . . . . 8 . . . . . . . . . Robot Analysis 2 | . 2 . . . . . . . . . . . . . . . . . . . . Prototype ID Bank 3 | . . . . . . . . . . . . 3 . . . . . . . . . Open Door 1 | . . . . . . 1 . . . . . . . . . . . . . . . Emergency Access Points 1 | . . . . 1 . . . . . . . . . . . . . . . . . Terminal Index 2 | . 1 . . . 1 . . . . . . . . . . . . . . . . Fabricator Hacks 1 | . . . . . . . . . . . . . . . . 1 . . . . . Network Status 1 | . . . . . . . . . . . . . . . . 1 . . . . . Repair Station Hacks 1 | . . . . . . . . . . . . . . . . 1 . . . . . Scan Component 1 | . . . . . . . . . . . . . . . . 1 . . . . . Recycling Unit Hacks . | . . . . . . . . . . . . . . . . . . . . . . Scanalyzer 3 | . . 1 . . 2 . . . . . . . . . . . . . . . . Retrieve Study 3 | . . 1 . . 2 . . . . . . . . . . . . . . . . Garrison Access Hacks 3 | . . . 1 . . . . . . . . . . . . . . . 2 . . Unlock Access 2 | . . . 1 . . . . . . . . . . . . . . . 1 . . Coupler Status 1 | . . . . . . . . . . . . . . . . . . . 1 . . Unauthorized Hacks 8 | . 5 . . . 2 . . . . 1 . . . . . . . . . . . Terminals 8 | . 5 . . . 2 . . . . 1 . . . . . . . . . . . Botnet 8 | . 5 . . . 2 . . . . 1 . . . . . . . . . . . Fabricators . | . . . . . . . . . . . . . . . . . . . . . . Repair Stations . | . . . . . . . . . . . . . . . . . . . . . . Recycling Units . | . . . . . . . . . . . . . . . . . . . . . . Scanalyzers . | . . . . . . . . . . . . . . . . . . . . . . Garrison Access . | . . . . . . . . . . . . . . . . . . . . . . Data Cores Recovered . | . . . . . . . . . . . . . . . . . . . . . . Used . | . . . . . . . . . . . . . . . . . . . . . . Hacking Detections 19 | . 7 1 1 1 2 . . . . 2 . . 1 . . 2 . . 1 1 . Full Trace Events 1 | . . . . . . . . . . . . . . . . . . . . 1 . Feedback Events . | . . . . . . . . . . . . . . . . . . . . . . Feedback Blocked . | . . . . . . . . . . . . . . . . . . . . . . Robot Schematics Acquired 8 | . . . . . . . . . . . . 8 . . . . . . . . . Robots Built . | . . . . . . . . . . . . . . . . . . . . . . Authchips . | . . . . . . . . . . . . . . . . . . . . . . Time . | . . . . . . . . . . . . . . . . . . . . . . Total Robot Build Rating . | . . . . . . . . . . . . . . . . . . . . . . Part Schematics Acquired 12 | . . . . . . . . . . . . 12 . . . . . . . . . Parts Built . | . . . . . . . . . . . . . . . . . . . . . . Authchips . | . . . . . . . . . . . . . . . . . . . . . . Time . | . . . . . . . . . . . . . . . . . . . . . . Total Part Build Rating . | . . . . . . . . . . . . . . . . . . . . . . Part Studies Acquired 3 | . . 1 . . 2 . . . . . . . . . . . . . . . . Parts Repaired . | . . . . . . . . . . . . . . . . . . . . . . Time . | . . . . . . . . . . . . . . . . . . . . . . Parts Recycled . | . . . . . . . . . . . . . . . . . . . . . . Recycled Matter . | . . . . . . . . . . . . . . . . . . . . . . Retrieved Matter . | . . . . . . . . . . . . . . . . . . . . . . Retrieved Components . | . . . . . . . . . . . . . . . . . . . . . . Parts Scanalyzed . | . . . . . . . . . . . . . . . . . . . . . . Part Schematics Acquired . | . . . . . . . . . . . . . . . . . . . . . . Parts Damaged . | . . . . . . . . . . . . . . . . . . . . . . Bothacking | -11 -10 -9 -8 -8 -7 -7 -7 -7 -6 -6 -6 -6 -5 -5 -5 -5 -5 -5 -4 -4 -3 ------------ Run | Yrd Mat Mat Mat Gar Fac Low Low Zio Pro Fac Low Dat Pro Fac Was Fac Ext Cet Fac Gar Res Used RIF Installer 1 | . . . . 1 . . . . . . . . . . . . . . . . . Robots Hacked 6 | . . . . . 1 . . . . . . . . . . 3 . . . 2 . Non-combat 2 | . . . . . 1 . . . . . . . . . . 1 . . . . . Combat 4 | . . . . . . . . . . . . . . . . 2 . . . 2 . Robot Hacks Applied 7 | . . . . . 1 . . . . . . . . . . 4 . . . 2 . parse_system 1 | . . . . . . . . . . . . . . . . 1 . . . . . no_distress 1 | . . . . . . . . . . . . . . . . 1 . . . . . find_chute 1 | . . . . . 1 . . . . . . . . . . . . . . . . amplify_resonance 1 | . . . . . . . . . . . . . . . . . . . . 1 . go_dormant 1 | . . . . . . . . . . . . . . . . 1 . . . . . streamctrl_high 1 | . . . . . . . . . . . . . . . . . . . . 1 . formatsys_high 1 | . . . . . . . . . . . . . . . . 1 . . . . . Relay Couplers Released 8 | . . . . 4 . . . . . . . . . . . . . . . 4 . Machine Destruction 8 | . . . . 4 . . . . . . . . . . . . . . . 4 . Attached 3 | . . . . 1 . . . 1 . . . . . . . . . . . 1 . Fabnet Peak Effective % . | . . . . . . . . . . . . . . . . . . . . . . Robots Rewired 4 | . . . . . . . . . . . . . . . . . 4 . . . . Allies Hacked . | . . . . . . . . . . . . . . . . . . . . . . Hacks Repelled . | . . . . . . . . . . . . . . . . . . . . . . Allies | -11 -10 -9 -8 -8 -7 -7 -7 -7 -6 -6 -6 -6 -5 -5 -5 -5 -5 -5 -4 -4 -3 -------- Run | Yrd Mat Mat Mat Gar Fac Low Low Zio Pro Fac Low Dat Pro Fac Was Fac Ext Cet Fac Gar Res Total Allies 8 | . . . . . . . . . . . . . 1 . . 1 5 . . 1 . Largest Group 5 | . . . . . . . . . . . . . 1 . . 1 5 . . 1 . Highest-Rated Group 130 | . . . . . . . . . . . . . 96 . . 54 130 . . 49 . Highest-Rated Ally 96 | . . . . . . . . . . . . . 96 . . 54 39 . . 49 . Total Orders . | . . . . . . . . . . . . . . . . . . . . . . Ally Attacks 58 | . . . . . . . . . . . . . 5 . . 14 35 . . 4 . Total Damage 1574 | . . . . . . . . . . . . . 236 . . 290 857 . . 191 . Kills 10 | . . . . . . . . . . . . . 2 . . 3 5 . . . . Allies Corrupted . | . . . . . . . . . . . . . . . . . . . . . . Allies Melted 1 | . . . . . . . . . . . . . . . . . 1 . . . . Intel | -11 -10 -9 -8 -8 -7 -7 -7 -7 -6 -6 -6 -6 -5 -5 -5 -5 -5 -5 -4 -4 -3 ------- Run | Yrd Mat Mat Mat Gar Fac Low Low Zio Pro Fac Low Dat Pro Fac Was Fac Ext Cet Fac Gar Res Active Infowar (turns) 939 | . . 443 9 . 345 97 . . . . . . . . . . 32 . . . 13 Seismic 474 | . . . . . 345 97 . . . . . . . . . . 32 . . . . T.N.C. 452 | . . 443 9 . . . . . . . . . . . . . . . . . . Jamming 13 | . . . . . . . . . . . . . . . . . . . . . 13 Robot Analysis Total 2 | . 2 . . . . . . . . . . . . . . . . . . . . Derelict Logs Recovered 5 | . . . . . . 2 . . 1 . 1 . 1 . . . . . . . . Drone Launches . | . . . . . . . . . . . . . . . . . . . . . . Drone Recoveries . | . . . . . . . . . . . . . . . . . . . . . . Exploration | -11 -10 -9 -8 -8 -7 -7 -7 -7 -6 -6 -6 -6 -5 -5 -5 -5 -5 -5 -4 -4 -3 ------------- Run | Yrd Mat Mat Mat Gar Fac Low Low Zio Pro Fac Low Dat Pro Fac Was Fac Ext Cet Fac Gar Res Turns Passed 7218 | 59 675 444 24 444 616 798 345 659 236 318 128 96 484 19 161 477 616 76 35 308 200 Spaces Moved 5141 | 49 496 301 17 261 312 474 199 195 310 219 74 81 567 43 173 257 471 54 30 168 390 Core 1097 | 1 . . . . . . 22 101 300 . . . 389 . . . 106 . . 94 84 Treads 482 | . . . . . . . . 94 . . . . . . 61 257 44 26 . . . Legs 1528 | . . . . 81 312 474 177 . . 205 74 81 124 . . . . . . . . Wheels 1541 | 48 496 301 17 180 . . . . . . . . 46 . . . 321 28 30 74 . Hover 24 | . . . . . . . . . 10 14 . . . . . . . . . . . Flight 469 | . . . . . . . . . . . . . 8 43 112 . . . . . 306 Fastest Speed 40 | 50 80 80 100 100 120 120 120 100 50 120 120 120 40 40 40 160 50 100 100 50 40 Average Speed 115 | 79 80 89 109 116 152 151 175 333 74 120 120 120 83 40 84 160 97 133 100 139 43 Slowest Speed 700 | 80 80 100 115 120 190 190 550 700 120 120 120 120 250 40 360 160 170 170 100 250 125 Overloaded Moves . | . . . . . . . . . . . . . . . . . . . . . . Propulsion Burnouts . | . . . . . . . . . . . . . . . . . . . . . . Robots Hopped 28 | . . . . . . . . . . . . . . . . . . . . . 28 Potential Cave-ins 2 | . . . . . . . . . . . . . . . . . . . . 2 . Cave-ins Triggered . | . . . . . . . . . . . . . . . . . . . . . . Exploration Rate (%) 33 | 4 82 29 3 43 7 67 43 15 51 6 16 69 79 2 84 8 70 22 1 28 13 Regions Visited 21 Branch Regions 9 Pre-discovered Areas 1 | . . . . . . . . . . . . 1 . . . . . . . . . Known Exits Taken 3 | . . . 1 . . . . . . . . . . . . 1 . . 1 . . Unknown Exits Taken 14 | 1 1 1 . . 1 1 1 1 1 1 1 1 1 . . . 1 1 . . . Scrap Searched 8 | . . . . . . 3 1 1 3 . . . . . . . . . . . . Spaces Dug 9 | . . . . 2 . . . . . 1 . . . . . . 2 . . 4 . Terrain Destroyed 98 | . . . . 6 . . . . . 44 . . . . . 42 2 . . 4 . Melee 7 | . . . . . . . . . . 1 . . . . . . 2 . . 4 . Projectile . | . . . . . . . . . . . . . . . . . . . . . . AOE 91 | . . . . 6 . . . . . 43 . . . . . 42 . . . . . Terrain Rammed 2 | . . . . . . . . . . . . . . . . . . . 1 1 . Walls Destroyed . | . . . . . . . . . . . . . . . . . . . . . . Machines Disabled . | . . . . . . . . . . . . . . . . . . . . . . Actions | -11 -10 -9 -8 -8 -7 -7 -7 -7 -6 -6 -6 -6 -5 -5 -5 -5 -5 -5 -4 -4 -3 --------- Run | Yrd Mat Mat Mat Gar Fac Low Low Zio Pro Fac Low Dat Pro Fac Was Fac Ext Cet Fac Gar Res Total 5932 | 61 656 397 22 332 427 525 198 204 313 249 92 80 573 44 188 298 598 57 35 204 379 Wait 219 | . 67 28 . 6 57 18 . . . . 7 . . . . 2 34 . . . . Move 5083 | 48 495 300 17 260 311 473 198 194 309 218 73 80 566 43 172 256 470 53 30 167 350 Hop 12 | . . . . . . . . . . . . . . . . . . . . . 12 Pick Up 72 | 5 12 10 1 8 9 5 . 2 1 2 1 . 1 . 4 3 3 . . 2 3 Fast Attach 84 | 6 4 2 1 3 6 4 . 3 2 8 . . 3 1 6 9 16 . 2 2 6 Attach 38 | . 4 5 1 6 4 . . 2 . 2 . . 1 . 2 2 3 3 . 2 1 Detach 11 | . 2 . 1 1 2 . . 1 . 1 . . . . . . 2 . 1 . . Swap 7 | . 1 1 . 2 2 . . . . 1 . . . . . . . . . . . Drop 50 | . 8 1 1 4 10 6 . 2 1 2 . . 1 . 4 1 7 . 1 . 1 Fire 274 | 2 63 49 . 41 25 19 . . . 11 11 . . . . 21 26 1 . 5 . Melee 32 | . . . . 1 1 . . . . 4 . . . . . 2 2 . . 16 6 Ram 7 | . . 1 . . . . . . . . . . 1 . . . 3 . 1 1 . Kick . | . . . . . . . . . . . . . . . . . . . . . . Crush 2 | . . . . . . . . . . . . . . . . 2 . . . . . Escape Stasis 41 | . . . . . . . . . . . . . . . . . 32 . . 9 . Rewire . | . . . . . . . . . . . . . . . . . . . . . . Trap . | . . . . . . . . . . . . . . . . . . . . . . Miscellaneous . | . . . . . . . . . . . . . . . . . . . . . . Route ------- -11/Scrapyard -10/Materials (discovered 3 exits: *Mat x3) -9/Materials -8/Materials -8/Garrison -7/Factory -7/Lower Caves -7/Lower Caves (discovered 2 exits: *Fac / [*Zio]) -7/Zion -6/Proximity Caves -6/Factory -6/Lower Caves -6/Data Miner -5/Proximity Caves -5/Factory (discovered 2 exits: Upp / Ext) -5/Waste -5/Factory -5/Extension (discovered 2 exits: *Fac / [*Cet]) -5/Cetus -4/Factory -4/Garrison -3/Research History --------- Turn | Location | Event 7 | -11/Scrapyard | Discovered new exit (range 15) 60 | -11/Scrapyard | Entered Materials 309 | -10/Materials | Build established: Mutant 397 | -10/Materials | Discovered new exit (range 16) 660 | -10/Materials | Discovered new exit (range 5) 702 | -10/Materials | Discovered new exit (range 16) 735 | -10/Materials | Entered another Materials area 735 | -9/Materials | Evolved 2 slots: Propulsion x1, Utility x1 850 | -9/Materials | Lost 3 parts (2n1u) 851 | -9/Materials | Central database locked down 1055 | -9/Materials | Build established: Scavenger-Mutant 1175 | -9/Materials | Discovered new exit (range 4) 1179 | -9/Materials | Entered another Materials area 1179 | -8/Materials | Evolved 2 slots: Propulsion x1, Weapon x1 1203 | -8/Materials | Identified exit to Garrison 1203 | -8/Materials | Entered Garrison 1247 | -8/Garrison | Triggered checkpoint 1282 | -8/Garrison | Installed Relay Interface Framework 1304 | -8/Garrison | Garrison Relay disabled 1379 | -8/Garrison | Triggered checkpoint 1453 | -8/Garrison | Triggered checkpoint 1512 | -8/Garrison | Triggered checkpoint 1537 | -8/Garrison | Lost 5 parts (1p1n1u2w) 1546 | -8/Garrison | Destroyed 8 combat bots 1563 | -8/Garrison | Triggered checkpoint 1617 | -8/Garrison | Discovered new exit (range 9) 1647 | -8/Garrison | Entered Factory 1647 | -7/Factory | Evolved 2 slots: Utility x2 2129 | -7/Factory | Lost 3 parts (2n1u) 2214 | -7/Factory | Central database locked down 2248 | -7/Factory | Discovered new exit (range 3) 2263 | -7/Factory | Entered Lower Caves 2265 | -7/Lower Caves | Attracted the attention of an 0b10 checkpoint 2426 | -7/Lower Caves | Learned Factory interactive machine intel 2434 | -7/Lower Caves | Build established: Tank 2567 | -7/Lower Caves | Learned 4 Factory zone layouts 3024 | -7/Lower Caves | Build established: Gunner 3045 | -7/Lower Caves | Discovered new exit (range 13) 3055 | -7/Lower Caves | Encountered a Warlord checkpoint 3061 | -7/Lower Caves | Entered another Lower Caves area 3064 | -7/Lower Caves | Discovered new exit (range 14) 3243 | -7/Lower Caves | Spotted B-75 Beast 3320 | -7/Lower Caves | Lost 6 parts (1p3n1u1w) 3373 | -7/Lower Caves | Discovered new exit (range 7) 3406 | -7/Lower Caves | Entered Zion 3556 | -7/Zion | Build established: Mutant 3862 | -7/Zion | Discovered new exit (range 10) 3900 | -7/Zion | Found Relay Coupler [Programmer] 3909 | -7/Zion | Found Relay Coupler [Programmer] 4012 | -7/Zion | RIF detected upon attempting to enter Zion 4012 | -7/Zion | Attacked by Zionites 4013 | -7/Zion | Spotted K1-IL3(B) 4013 | -7/Zion | Spotted OD-M80(B) 4034 | -7/Zion | Core integrity fell below 50% 4065 | -7/Zion | Entered Proximity Caves 4069 | -6/Proximity Caves | Lost 4 parts (1p1n2w) 4273 | -6/Proximity Caves | Learned 4 Factory zone layouts 4279 | -6/Proximity Caves | Discovered new exit (range 10) 4301 | -6/Proximity Caves | Entered Factory 4301 | -6/Factory | Evolved 2 slots: Propulsion x1, Utility x1 4303 | -6/Factory | Loaded intel: 53 interactive machine locations 4588 | -6/Factory | Discovered new exit (range 7) 4619 | -6/Factory | Entered Lower Caves 4734 | -6/Lower Caves | A Derelict revealed a hidden shortcut to meet someone special 4747 | -6/Lower Caves | Entered Data Miner 4747 | -6/Data Miner | Discovered new exit (range 6) 4770 | -6/Data Miner | Met Data Miner 4792 | -6/Data Miner | Learned location of Section 7 (-2) 4792 | -6/Data Miner | Acquired the access code to Warlord's prototype stash 4811 | -6/Data Miner | Received God Mode back door access code from Data Miner 4843 | -6/Data Miner | Entered Proximity Caves 4919 | -5/Proximity Caves | Spotter reported a threat 4981 | -5/Proximity Caves | Spotter reported a threat 5078 | -5/Proximity Caves | Spotted B-75 Beast 5214 | -5/Proximity Caves | Core integrity fell below 50% 5216 | -5/Proximity Caves | Attracted the attention of an 0b10 checkpoint 5252 | -5/Proximity Caves | Learned 12 Factory zone layouts 5310 | -5/Proximity Caves | Spotter reported a threat 5324 | -5/Proximity Caves | Discovered new exit (range 9) 5326 | -5/Proximity Caves | Core integrity fell below 20% 5327 | -5/Proximity Caves | Entered Factory 5327 | -5/Factory | Evolved 2 slots: Utility x2 5328 | -5/Factory | Identified exit to Upper Caves 5329 | -5/Factory | Identified exit to Extension 5346 | -5/Factory | Manually triggered Chute Trap 5346 | -5/Factory | Sucked down chute 5346 | -5/Factory | Entered Waste 5346 | -5/Waste | The area was eerily silent 5442 | -5/Waste | Discovered new exit (range 12) 5502 | -5/Waste | Identified exit to Factory 5507 | -5/Waste | Entered Factory 5676 | -5/Factory | Build established: Scavenger-Mutant 5903 | -5/Factory | Lost 7 parts (1p1n2u3w) 5953 | -5/Factory | Discovered exit to Extension (range 16) 5984 | -5/Factory | Entered Extension 6080 | -5/Extension | Rescued a captive Derelict 6466 | -5/Extension | Spotted B-75 Beast 6466 | -5/Extension | Spotted B-75 Beast 6516 | -5/Extension | Lost 5 allies 6529 | -5/Extension | Released all parts (6) 6559 | -5/Extension | Core integrity fell below 50% 6560 | -5/Extension | Lost 11 parts (1p3n6u1w) 6581 | -5/Extension | Discovered new exit (range 10) 6581 | -5/Extension | Discovered new exit (range 6) 6600 | -5/Extension | Entered Cetus 6624 | -5/Cetus | Spotted Cetus Guard 6625 | -5/Cetus | Spotted Cetus Guard 6626 | -5/Cetus | Spotted Cetus Guard 6628 | -5/Cetus | Spotted Cetus Guard 6659 | -5/Cetus | Core integrity fell below 20% 6660 | -5/Cetus | Discovered new exit (range 16) 6676 | -5/Cetus | Entered Factory 6676 | -4/Factory | Evolved 2 slots: Power x1, Propulsion x1 6711 | -4/Factory | Identified exit to Garrison 6711 | -4/Factory | Entered Garrison 6744 | -4/Garrison | Spotted B-86 Titan 6745 | -4/Garrison | Triggered checkpoint 6797 | -4/Garrison | Build established: Mutant 6830 | -4/Garrison | Garrison Relay disabled 6861 | -4/Garrison | Triggered checkpoint 7006 | -4/Garrison | Core integrity fell below 50% 7014 | -4/Garrison | Discovered new exit (range 10) 7019 | -4/Garrison | Entered Research 7019 | -3/Research | Evolved 2 slots: Utility x2 7026 | -3/Research | Lost 3 parts (3w) 7138 | -3/Research | Core integrity fell below 50% 7163 | -3/Research | Lost 6 parts (1p1n3u1w) 7178 | -3/Research | Core integrity fell below 20% 7219 | -3/Research | Destroyed by S-43 Plague with Heavy Machine Gun Last Messages --------------- 07109_ Field Propulsion Drive destroyed. 07117_ Gravity Neutralizer destroyed. 07122_ S-43 Plague suffers critical hit (Smash). 07122_ S-43 Plague destroyed. 07123_ Flail destroyed. 07125_ Acquired Xenon Bombardment Thruster. 07126_ Acquired 28 matter. 07132_ Adv. Transmission Jammer destroyed. 07175_ S-43 Plague destroyed. 07176_ Acquired Nuclear Pulse Array. 07177_ Penetrated by Slug. 07177_ Xenon Bombardment Thruster destroyed. 07177_ Knocked back. 07186_ Slug penetrates Wall. 07190_ Acquired 20 matter. 07198_ S-43 Plague destroyed. 07198_ K-01 Serf collects debris. 07208_ Penetrated by Slug. 07216_ Detecting nearby Garrison Access. 07217_ Nuclear Pulse Array destroyed. Map ----- +----------------------------------------------------+ | ?????????????????????????????????????????????????? | | ?????????????????????????????????????????????????? | | ?????????????????????????????????????????????????? | | ?????????????????????????????????????????????????? | | ?????????????????????????????????????????????????? | | ?????????????????????????????????????????????????? | | ?????????????????????????????????????????????????? | | ?????????????????????????????????????????????????? | | ?????????????????????????????????????????????????? | | ?????????????????????????????????????????????????? | | ???????????????????????########??????????????????? | | ???????????????????????# #??????????????????? | | ???????????????????????# #??????????????????? | | ???????????????????????# #??????????????????? | | ???????????????????????# #??????????????????? | | ???????????????????????# #??????????????????? | | ???????????????????????# #??????????????????? | | ???????????????????????# #??????????????????? | | ???????????????????????# #??????????????????? | | ???????????????????????# #?????????????????? | | ???????????????????????# #????????????????? | | ???????????????????????# #???????????????? | | ???????????????????????# = #??????????????? | | ???????????????????????? ?????????######## | | ???????????????# k######+############ | | ??????????k k k @ s k | | ???????????????# ss ss | | ???????????????# k###########+## | | ???????????????# " ?????????? # ######+ | | ???????????????# "" ?????????? # #?????? | | ???????????????# G ????????? # #?????? | | ???????????????# "" ?????????? # #?????? | | ???????????????#? " ????????? # #?????? | | ???????????????? ??????######### #?????? | | ???????????????? ??????? # #?????? | | ????????????????? ???????? # #?????? | | ????????????????? ###????????""""" # #?????? | | ???????????????? ?????? ? """"""" # #?????? | | ?????????????????? ??????# """"""" # #?????? | | ?????????????????????????# + #?????? | | ?????????????????????????# # #?????# | | ?????????????????????????+ / #?????# | | ?????????????????????????# """Y""" # ####?????# | | ?????????????????????????#??""""""" # #????????# | | ?????????????????????????????? # #????????# | | ????????????????????????????? # #????????# | | ?????????????????????????????########## ####?????# | | ????????????????????????????????+ #?????# | | ????????????????????????????????########## #?????# | | ??????????????????????????????????????#### ##???## | +----------------------------------------------------+ Best States ------------- Heat Dissipation 67 Energy Generation 21 Energy Capacity 325 Matter Stores 300 Matter Capacity 300 Sight Range 16 Terrain Scan Density 10 Jamming Range 16 Additional Mass Support 12 EM Shielding 2 Armor Coverage 600 Resistance: EM 25 Propulsion Shielding 66 Evasion (%) 62 Targeting Accuracy 8 Melee Accuracy 8 Recoil Reduction 4 Kinecelleration 40 Salvage Targeting 4 Relay Coupler Types 2 Relay Coupler Value 108 Item Schematics ----------------- Combat Drone Bay | -6/Data Miner | Free Lgt. Regenerative Plating | -6/Data Miner | Free Enh. Flexi-carbon Leg | -6/Data Miner | Free Prc. Energy Filter | -6/Data Miner | Free Kinetic Spear | -6/Data Miner | Free Shield Leg | -6/Data Miner | Free Dual-blade Saw | -6/Data Miner | Free Adv. Cryofiber Web | -6/Data Miner | Free Lrn. Tractor Beam | -6/Data Miner | Free Lgt. Antimatter Reactor | -6/Data Miner | Free Matter Neutralizer | -6/Data Miner | Free Mic. Antimatter Reactor | -6/Data Miner | Free Robot Schematics ------------------ H-66 Slayer | -6/Data Miner | Free A-15 Conveyor | -6/Data Miner | Free R-10 Processor | -6/Data Miner | Free L-41 Fighter | -6/Data Miner | Free G-50 Soldier | -6/Data Miner | Free Y-64 Sentinel | -6/Data Miner | Free O-32 Director | -6/Data Miner | Free B-60 Warrior | -6/Data Miner | Free Fabricated ------------ Nothing Repaired ---------- Nothing Studied --------- Wheel | -9/Materials | Hacked Flak Gun | -7/Factory | Hacked Gauss Rifle | -7/Factory | Hacked Alien Tech Used ----------------- None Achievements -------------- Error 47 Wheee! White Hat Challenges ------------ None Game ------ Seed WeightAlertAxe Manual? 0 Play Time 01:11:28 Cumulative 49.6 hours Start 2025.12.21 @ 22:04:12 End 2025.12.24 @ 10:37:14 Sessions 6 Manual Loads 0 Difficulty Rogue Special Mode None Game No. 59 Rogue 59 Adventurer 0 Explorer 0 Win Type - Total 2 Types 2/0/0/0/0/0/0/0/0/0 Lore% 38 Gallery% 42 Achievement% 32 Wizard Run 0 Options --------- Layout 0 ASCII 0 Keyboard 1 Movement Numpad Keybinds 0 Fullscreen 1 Font 24/Smallcaps Map View 76x50 Zoom Use 0% Tactical HUD 1 Map Filters NONE Filters NONE Steam 1 RUN: 40f651b6-fc52-47bb-92ec-c019001d6ca3